[Event "16th Marseille Festival 2023"]
[Site "Marseille"]
[Date "2023.12.30"]
[Round "6.3"]
[White "Girel, Joseph"]
[Black "Petrosyan, Armen"]
[Result "1/2-1/2"]
[WhiteElo "2495"]
[BlackElo "2368"]
[PlyCount "142"]
[EventDate "2023.12.30"]
[EventType "swiss"]
[EventCountry "FRA"]
[TimeControl "5400+30"]

1. d4 {[%emt 0:00:27]} d5 {[%emt 0:00:19]} 2. c4 {[%emt 0:00:20]} e6 {[%emt 0:00:08]} 3. Nc3 {[%emt 0:00:29]} a6 {[%emt 0:00:14]} 4. cxd5 {[%emt 0:00:46]} exd5 {[%emt 0:00:04]} 5. Nf3 {[%emt 0:00:15]} c6 {[%emt 0:00:16]} 6. e4 {[%emt 0:00:19]} dxe4 {[%emt 0:01:08]} 7. Ng5 {[%emt 0:00:10]} Nh6 {[%emt 0:30:33]} 8. Bc4 {[%emt 0:03:04]} b5 {[%emt 0:02:24]} 9. Bb3 {[%emt 0:01:16]} Nd7 {[%emt 0:02:00]} 10. O-O {[%emt 0:05:58]} Nf6 {[%emt 0:00:36]} 11. Ngxe4 {[%emt 0:05:12]} Nf5 {[%emt 0:06:56]} 12. Nxf6+ {[%emt 0:07:51]} Qxf6 {[%emt 0:00:18]} 13. d5 {[%emt 0:00:44]} c5 {[%emt 0:09:46]} 14. Re1+ {[%emt 0:00:26]} Kd8 {[%emt 0:00:21]} 15. Ne4 {[%emt 0:02:13]} Qg6 {[%emt 0:01:12]} 16. d6 {[%emt 0:01:45]} Ra7 {[%emt 0:11:19]} 17. Qd5 {[%emt 0:06:45]} Bxd6 {[%emt 0:06:31]} 18. Nxc5 {[%emt 0:09:21]} Kc7 {[%emt 0:01:27]} 19. Bd2 {[%emt 0:02:38]} Kb8 {[%emt 0:00:43]} 20. Rac1 {[%emt 0:03:14]} Rd8 {[%emt 0:01:59]} 21. Bf4 {[%emt 0:03:45]} Bxf4 {[%emt 0:10:10]} 22. Qxd8 {[%emt 0:00:09]} Bxc1 {[%emt 0:00:08]} 23. Rxc1 {[%emt 0:04:28]} Qd6 {[%emt 0:00:19]} 24. Nb7 {[%emt 0:05:58]} Qd7 {[%emt 0:04:00]} 25. Qxd7 {[%emt 0:04:26]} Bxd7 {[%emt 0:00:04]} 26. Nc5 {[%emt 0:00:11]} Bc8 {[%emt 0:01:40]} 27. Bc2 {[%emt 0:02:06]} Nd4 {[%emt 0:00:26]} 28. Bd3 {[%emt 0:00:52]} Bf5 {[%emt 0:01:47]} 29. Rd1 {[%emt 0:01:29]} Kc8 {[%emt 0:06:44]} 30. h4 {[%emt 0:03:27]} Bxd3 {[%emt 0:00:51]} 31. Rxd3 {[%emt 0:00:08]} Nf5 {[%emt 0:00:21]} 32. h5 {[%emt 0:01:25]} a5 {[%emt 0:00:43]} 33. g4 {[%emt 0:01:07]} Ne7 {[%emt 0:00:07]} 34. Ne4 {[%emt 0:01:58]} Rd7 {[%emt 0:00:05]} 35. Rc3+ {[%emt 0:02:28]} Kd8 {[%emt 0:00:26]} 36. Rc5 {[%emt 0:05:36]} Rd5 {[%emt 0:01:03]} 37. Rxd5+ {[%emt 0:01:49]} Nxd5 {[%emt 0:00:04]} 38. Nd6 {[%emt 0:00:04]} Nb4 {[%emt 0:00:10]} 39. Nxb5 {[%emt 0:06:26]} Nxa2 {[%emt 0:00:08]} 40. Nd6 {[%emt 0:00:01]} Ke7 {[%emt 0:02:21]} 41. Nc4 {[%emt 0:00:07]} Nb4 {[%emt 0:00:15]} 42. Nxa5 {[%emt 0:00:26]} Nd3 {[%emt 0:00:05]} 43. Nc4 {[%emt 0:00:34]} Ke6 {[%emt 0:00:08]} 44. Kg2 {[%emt 0:01:16]} f5 {[%emt 0:00:14]} 45. f3 {[%emt 0:01:35]} f4 {[%emt 0:01:08]} 46. b3 {[%emt 0:01:47]} Kd5 {[%emt 0:00:05]} 47. g5 {[%emt 0:01:52]} Ke6 {[%emt 0:01:37]} 48. Nd2 {[%emt 0:00:57]} Kf5 {[%emt 0:00:21]} 49. Ne4 {[%emt 0:00:02]} Ne1+ {[%emt 0:00:19]} 50. Kf2 {[%emt 0:00:11]} Nd3+ {[%emt 0:00:06]} 51. Kf1 {[%emt 0:00:28]} Ke5 {[%emt 0:00:57]} 52. Nf2 {[%emt 0:01:14]} Nb4 {[%emt 0:00:20]} 53. Ke2 {[%emt 0:02:23]} Kf5 {[%emt 0:00:05]} 54. Ne4 {[%emt 0:00:58]} Nc6 {[%emt 0:00:07]} 55. Kf2 {[%emt 0:01:23]} Nb4 {[%emt 0:00:12]} 56. Kg2 {[%emt 0:00:32]} Nc2 {[%emt 0:00:19]} 57. h6 {[%emt 0:00:40]} gxh6 {[%emt 0:00:41]} 58. gxh6 {[%emt 0:00:02]} Ne1+ {[%emt 0:00:21]} 59. Kf2 {[%emt 0:00:14]} Nd3+ {[%emt 0:00:08]} 60. Kf1 {[%emt 0:00:24]} Kg6 {[%emt 0:00:07]} 61. Nc3 {[%emt 0:00:36]} Kxh6 {[%emt 0:00:26]} 62. Nd5 {[%emt 0:00:09]} Kg5 {[%emt 0:00:13]} 63. b4 {[%emt 0:00:06]} Kf5 {[%emt 0:01:25]} 64. b5 {[%emt 0:00:56]} Ke5 {[%emt 0:00:13]} 65. b6 {[%emt 0:00:38]} Nc5 {[%emt 0:00:04]} 66. Nb4 {[%emt 0:00:29]} Kd4 {[%emt 0:01:23]} 67. Nc6+ {[%emt 0:00:47]} Kd5 {[%emt 0:00:36]} 68. Nb4+ {[%emt 0:00:38]} Kc4 {[%emt 0:00:17]} 69. Nc2 {[%emt 0:00:55]} Kb5 {[%emt 0:00:16]} 70. Kg2 {[%emt 0:00:14]} Kxb6 {[%emt 0:00:05]} 71. Kh3 {[%emt 0:00:07]} Nb3 {[%emt 0:00:13]} 1/2-1/2

[Event "16th Marseille Festival 2023"]
[Site "Marseille"]
[Date "2023.12.30"]
[Round "6.4"]
[White "Pichon, Ewen"]
[Black "De Carvalho Massabo, Raphael"]
[Result "1/2-1/2"]
[WhiteElo "2274"]
[BlackElo "2137"]
[PlyCount "63"]
[EventDate "2023.12.30"]
[EventType "swiss"]
[EventCountry "FRA"]
[TimeControl "5400+30"]

1. d4 {[%emt 0:00:39]} Nf6 {[%emt 0:01:25]} 2. c4 {[%emt 0:01:05]} e6 {[%emt 0:00:04]} 3. Nc3 {[%emt 0:00:04]} d5 {[%emt 0:00:03]} 4. cxd5 {[%emt 0:00:19]} exd5 {[%emt 0:00:01]} 5. Bg5 {[%emt 0:00:08]} c6 {[%emt 0:00:02]} 6. e3 {[%emt 0:00:04]} h6 {[%emt 0:00:03]} 7. Bh4 {[%emt 0:00:12]} Bd6 {[%emt 0:00:04]} 8. Bd3 {[%emt 0:02:34]} O-O {[%emt 0:00:07]} 9. Nge2 {[%emt 0:01:56]} Re8 {[%emt 0:00:32]} 10. Bg3 {[%emt 0:00:16]} a5 {[%emt 0:04:51]} 11. O-O {[%emt 0:01:40]} Na6 {[%emt 0:00:34]} 12. a3 {[%emt 0:02:40]} Nc7 {[%emt 0:01:00]} 13. Bxd6 {[%emt 0:01:52]} Qxd6 {[%emt 0:00:10]} 14. Ng3 {[%emt 0:00:04]} b5 {[%emt 0:04:04]} 15. Rc1 {[%emt 1:24:27]} Ne6 {[%emt 0:08:14]} 16. Nf5 {[%emt 0:00:00]} Qf8 {[%emt 0:02:07]} 17. Qc2 {[%emt 0:00:00]} Bd7 {[%emt 0:02:11]} 18. Rfd1 {[%emt 0:00:00]} Ng5 {[%emt 0:10:49]} 19. Ng3 {[%emt 0:00:00]} h5 {[%emt 0:04:30]} 20. Bf5 {[%emt 0:00:00]} h4 {[%emt 0:05:19]} 21. Nh5 {[%emt 0:00:00]} Ngh7 {[%emt 0:14:36]} 22. Nxf6+ {[%emt 0:00:00]} Nxf6 {[%emt 0:00:02]} 23. Bxd7 {[%emt 0:00:00]} Nxd7 {[%emt 0:00:05]} 24. Qf5 {[%emt 0:00:00]} Nb6 {[%emt 0:06:25]} 25. Rc2 {[%emt 0:00:00]} Nc4 {[%emt 0:01:41]} 26. Nb1 {[%emt 0:00:00]} Re6 {[%emt 0:15:07]} 27. Nd2 {[%emt 0:00:00]} Qe7 {[%emt 0:00:32]} 28. Nf3 {[%emt 0:00:00]} a4 {[%emt 0:08:14]} 29. h3 {[%emt 0:00:00]} Re8 {[%emt 0:04:02]} 30. Rdc1 {[%emt 0:00:00]} Rh6 {[%emt 0:02:41]} 31. Qg4 {[%emt 0:00:00]} Qe6 {[%emt 0:00:41]} 32. Qxe6 {[%emt 0:00:00]} 1/2-1/2

[Event "16th Marseille Festival 2023"]
[Site "Marseille"]
[Date "2023.12.30"]
[Round "6.5"]
[White "Avanesyan, Davit"]
[Black "Baroyan, Davit"]
[Result "1/2-1/2"]
[WhiteElo "2142"]
[BlackElo "2203"]
[PlyCount "86"]
[EventDate "2023.12.30"]
[EventType "swiss"]
[EventCountry "FRA"]
[TimeControl "5400+30"]

1. e4 {[%emt 0:02:29]} e5 {[%emt 0:00:25]} 2. Nf3 {[%emt 0:00:07]} Nc6 {[%emt 0:00:06]} 3. Nc3 {[%emt 0:00:06]} Nf6 {[%emt 0:00:08]} 4. d4 {[%emt 0:00:09]} exd4 {[%emt 0:00:11]} 5. Nxd4 {[%emt 0:00:04]} Bb4 {[%emt 0:00:22]} 6. Nxc6 {[%emt 0:00:08]} bxc6 {[%emt 0:00:07]} 7. Bd3 {[%emt 0:00:01]} d5 {[%emt 0:00:16]} 8. exd5 {[%emt 0:00:04]} cxd5 {[%emt 0:00:05]} 9. O-O {[%emt 0:00:04]} O-O {[%emt 0:00:03]} 10. h3 {[%emt 0:00:03]} h6 {[%emt 0:00:15]} 11. Nb5 {[%emt 0:00:34]} Ba6 {[%emt 0:00:32]} 12. Nd4 {[%emt 0:00:14]} Bxd3 {[%emt 0:00:22]} 13. Qxd3 {[%emt 0:00:05]} Re8 {[%emt 0:00:23]} 14. Nc6 {[%emt 0:00:26]} Qd6 {[%emt 0:00:04]} 15. Nxb4 {[%emt 0:00:05]} Qxb4 {[%emt 0:00:03]} 16. a3 {[%emt 0:00:17]} Qe4 {[%emt 0:00:28]} 17. Be3 {[%emt 0:00:19]} a5 {[%emt 0:02:50]} 18. Rfe1 {[%emt 0:00:43]} a4 {[%emt 0:01:02]} 19. Qc3 {[%emt 0:00:46]} Qf5 {[%emt 0:01:59]} 20. Qd3 {[%emt 0:00:13]} Qxd3 {[%emt 0:01:20]} 21. cxd3 {[%emt 0:00:04]} Rab8 {[%emt 0:00:08]} 22. Bd4 {[%emt 0:00:06]} Nd7 {[%emt 0:00:24]} 23. Rxe8+ {[%emt 0:00:09]} Rxe8 {[%emt 0:00:00]} 24. Rc1 {[%emt 0:00:30]} c5 {[%emt 0:01:00]} 25. Bxc5 {[%emt 0:00:30]} Nxc5 {[%emt 0:00:30]} 26. Rxc5 {[%emt 0:00:30]} Re5 {[%emt 0:00:30]} 27. Kh2 {[%emt 0:00:30]} Re2 {[%emt 0:00:30]} 28. Rxd5 {[%emt 0:00:30]} Rxb2 {[%emt 0:00:30]} 29. Ra5 {[%emt 0:00:30]} Rb3 {[%emt 0:00:30]} 30. Rxa4 {[%emt 0:00:30]} Rxd3 {[%emt 0:00:30]} 31. Ra8+ {[%emt 0:00:00] Rb3 Ra4 Rd3 Ra8+} Kh7 {[%emt 0:00:11]} 32. Rf8 {[%emt 0:00:00]} Rd7 {[%emt 0:00:27]} 33. Ra8 {[%emt 0:00:00]} Rd2 {[%emt 0:00:15]} 34. Kg3 {[%emt 0:00:00]} Rd3+ {[%emt 0:00:17]} 35. Kh2 {[%emt 0:00:00]} h5 {[%emt 0:00:13]} 36. a4 {[%emt 0:00:00]} h4 {[%emt 0:00:19]} 37. a5 {[%emt 0:00:00]} Ra3 {[%emt 0:00:04]} 38. a6 {[%emt 0:00:00]} Ra2 {[%emt 0:00:13]} 39. f3 {[%emt 0:00:00]} Ra1 {[%emt 0:00:41]} 40. Rf8 {[%emt 0:00:00]} Kg6 {[%emt 0:00:28]} 41. Rh8 {[%emt 0:00:00]} Ra4 {[%emt 0:00:22]} 42. a7 {[%emt 0:00:00]} Rxa7 {[%emt 0:00:03]} 43. Rxh4 {[%emt 0:00:00]} Ra2 {[%emt 0:01:00]} 1/2-1/2

[Event "16th Marseille Festival 2023"]
[Site "Marseille"]
[Date "2023.12.30"]
[Round "6.6"]
[White "Vu Dinh, Adrien"]
[Black "Fabre, Jean-charles"]
[Result "1-0"]
[WhiteElo "2234"]
[BlackElo "1883"]
[PlyCount "73"]
[EventDate "2023.12.30"]
[EventType "swiss"]
[EventCountry "FRA"]
[TimeControl "5400+30"]

1. e4 {[%emt 1:31:00]} e6 {[%emt 0:01:55]} 2. d4 {[%emt 0:00:00]} d5 {[%emt 0:00:17]} 3. Nd2 {[%emt 0:00:00]} c5 {[%emt 0:00:49]} 4. Ngf3 {[%emt 0:00:00]} cxd4 {[%emt 0:00:29]} 5. Nxd4 {[%emt 0:00:00]} Nc6 {[%emt 0:00:37]} 6. Bb5 {[%emt 0:00:00]} Bd7 {[%emt 0:00:14]} 7. Nxc6 {[%emt 0:00:00]} bxc6 {[%emt 0:00:19]} 8. Bd3 {[%emt 0:00:00]} Bd6 {[%emt 0:02:17]} 9. c4 {[%emt 0:00:00]} Nf6 {[%emt 0:08:58]} 10. O-O {[%emt 0:00:00]} O-O {[%emt 0:09:27]} 11. Qe2 {[%emt 0:00:00]} Qc7 {[%emt 0:05:35]} 12. h3 {[%emt 0:00:00]} h6 {[%emt 0:10:13]} 13. Re1 {[%emt 0:00:00]} dxe4 {[%emt 0:15:49]} 14. Nxe4 {[%emt 0:00:00]} Nxe4 {[%emt 0:00:20]} 15. Bxe4 {[%emt 0:00:00]} f5 {[%emt 0:03:57]} 16. Bc2 {[%emt 0:00:00]} c5 {[%emt 0:05:36]} 17. b3 {[%emt 0:00:00]} Rae8 {[%emt 0:02:37]} 18. Bb2 {[%emt 0:00:00]} e5 {[%emt 0:01:04]} 19. Rad1 {[%emt 0:00:00]} e4 {[%emt 0:04:49]} 20. Qd2 {[%emt 0:00:00]} Bh2+ {[%emt 0:02:21]} 21. Kh1 {[%emt 0:00:00]} Bc6 {[%emt 0:00:53]} 22. Qe2 {[%emt 0:00:00]} e3 {[%emt 0:05:01]} 23. fxe3 {[%emt 0:00:00]} Qg3 {[%emt 0:03:17]} 24. Rd3 {[%emt 0:00:00]} Be4 {[%emt 0:05:49]} 25. Rd7 {[%emt 0:00:00]} Rf7 {[%emt 0:02:49]} 26. Rxf7 {[%emt 0:00:00]} Kxf7 {[%emt 0:00:06]} 27. Rf1 {[%emt 0:00:00]} Kg6 {[%emt 0:03:34]} 28. Bxe4 {[%emt 0:00:00]} Rxe4 {[%emt 0:00:36]} 29. Qd3 {[%emt 0:08:19]} Qc7 {[%emt 0:02:17]} 30. Qd5 {[%emt 0:01:27]} Be5 {[%emt 0:01:09]} 31. Qe6+ {[%emt 0:00:43]} Kh7 {[%emt 0:01:29]} 32. Qxf5+ {[%emt 0:00:07]} Kg8 {[%emt 0:00:33]} 33. Qf8+ {[%emt 0:00:17]} Kh7 {[%emt 0:00:08]} 34. Qf5+ {[%emt 0:00:01]} Kg8 {[%emt 0:00:10]} 35. Qxe4 {[%emt 0:00:13]} Bxb2 {[%emt 0:00:05]} 36. Qe8+ {[%emt 0:00:57]} Kh7 {[%emt 0:00:05]} 37. Rf8 {[%emt 0:00:26]} 1-0

[Event "16th Marseille Festival 2023"]
[Site "Marseille"]
[Date "2023.12.30"]
[Round "6.7"]
[White "Delaplace, Mathias"]
[Black "Malka, Samuel"]
[Result "1-0"]
[WhiteElo "1956"]
[BlackElo "2201"]
[PlyCount "73"]
[EventDate "2023.12.30"]
[EventType "swiss"]
[EventCountry "FRA"]
[TimeControl "5400+30"]

1. e4 {[%emt 1:31:00]} e5 {[%emt 0:04:39]} 2. Nf3 {[%emt 0:00:00]} Nc6 {[%emt 0:00:09]} 3. Bc4 {[%emt 0:00:00]} Nf6 {[%emt 0:00:21]} 4. d3 {[%emt 0:00:00]} Bc5 {[%emt 0:01:21]} 5. Bg5 {[%emt 0:00:00]} h6 {[%emt 0:02:43]} 6. Bh4 {[%emt 0:00:00]} g5 {[%emt 0:01:06]} 7. Bg3 {[%emt 0:00:00]} d6 {[%emt 0:00:17]} 8. c3 {[%emt 0:00:00]} a6 {[%emt 0:01:30]} 9. Nbd2 {[%emt 0:00:00]} Ba7 {[%emt 0:01:02]} 10. a4 {[%emt 0:00:00]} Nh7 {[%emt 0:09:32]} 11. Nf1 {[%emt 0:00:00]} O-O {[%emt 0:09:02]} 12. Ne3 {[%emt 0:00:00]} Kh8 {[%emt 0:02:13]} 13. Qd2 {[%emt 0:00:00]} Ne7 {[%emt 0:07:22]} 14. h4 {[%emt 0:00:00]} g4 {[%emt 0:03:33]} 15. Nh2 {[%emt 0:00:00]} Bxe3 {[%emt 0:04:38]} 16. Qxe3 {[%emt 0:00:00]} f5 {[%emt 0:02:19]} 17. exf5 {[%emt 0:00:00]} Nxf5 {[%emt 0:00:18]} 18. Qe2 {[%emt 0:00:00]} Nxg3 {[%emt 0:05:43]} 19. fxg3 {[%emt 0:00:00]} Nf6 {[%emt 0:01:14]} 20. O-O {[%emt 0:00:00]} Qe7 {[%emt 0:08:27]} 21. Rf2 {[%emt 0:00:00]} Bd7 {[%emt 0:01:57]} 22. Raf1 {[%emt 0:00:00]} Qg7 {[%emt 0:00:28]} 23. Bb3 {[%emt 0:00:00]} Rae8 {[%emt 0:02:58]} 24. Qe3 {[%emt 0:00:00]} Qg6 {[%emt 0:04:05]} 25. Bc2 {[%emt 0:00:00]} Kg7 {[%emt 0:01:12]} 26. c4 {[%emt 0:00:00]} c5 {[%emt 0:04:15]} 27. b4 {[%emt 0:00:16]} cxb4 {[%emt 0:01:48]} 28. Qb6 {[%emt 0:00:38]} b3 {[%emt 0:10:07]} 29. Qxb3 {[%emt 0:01:50]} Bc6 {[%emt 0:00:51]} 30. Qb4 {[%emt 0:01:46]} Rd8 {[%emt 0:05:18]} 31. a5 {[%emt 0:04:50]} Rf7 {[%emt 0:03:32]} 32. c5 {[%emt 0:01:21]} d5 {[%emt 0:00:21]} 33. Nxg4 {[%emt 0:00:17]} Rdf8 {[%emt 0:01:18]} 34. Nxe5 {[%emt 0:01:02]} Qxg3 {[%emt 0:00:01]} 35. Nxf7 {[%emt 0:00:54]} Ng4 {[%emt 0:00:39]} 36. Qd4+ {[%emt 0:00:29]} Kh7 {[%emt 0:01:05]} 37. Qf4 {[%emt 0:01:16]} 1-0

[Event "16th Marseille Festival 2023"]
[Site "Marseille"]
[Date "2023.12.30"]
[Round "6.8"]
[White "Charlier, Antoine"]
[Black "Yaghi, leen"]
[Result "1-0"]
[WhiteElo "2147"]
[BlackElo "1874"]
[PlyCount "93"]
[EventDate "2023.12.30"]
[EventType "swiss"]
[EventCountry "FRA"]
[TimeControl "5400+30"]

1. d4 {[%emt 0:02:40]} d5 {[%emt 0:00:08]} 2. Nc3 {[%emt 0:00:39]} Nf6 {[%emt 0:00:55]} 3. Bf4 {[%emt 0:00:09]} c6 {[%emt 0:00:48]} 4. e3 {[%emt 0:00:12]} Bf5 {[%emt 0:00:45]} 5. f3 {[%emt 0:00:16]} e6 {[%emt 0:02:53]} 6. g4 {[%emt 0:00:11]} Bg6 {[%emt 0:01:34]} 7. h4 {[%emt 0:00:07]} h6 {[%emt 0:01:13]} 8. Bd3 {[%emt 0:00:10]} Bxd3 {[%emt 0:00:47]} 9. Qxd3 {[%emt 0:00:10]} Bd6 {[%emt 0:02:41]} 10. Nge2 {[%emt 0:00:16]} Bxf4 {[%emt 0:05:55]} 11. Nxf4 {[%emt 0:00:22]} Nbd7 {[%emt 0:00:20]} 12. O-O-O {[%emt 0:00:18]} e5 {[%emt 0:05:24]} 13. Nfe2 {[%emt 0:14:31]} Qe7 {[%emt 0:03:12]} 14. g5 {[%emt 0:04:09]} Nh5 {[%emt 0:02:13]} 15. e4 {[%emt 0:02:13]} dxe4 {[%emt 0:03:12]} 16. Qxe4 {[%emt 0:02:42]} O-O-O {[%emt 0:15:33]} 17. d5 {[%emt 0:08:24]} cxd5 {[%emt 0:09:24]} 18. Nxd5 {[%emt 0:10:48]} Qc5 {[%emt 0:00:28]} 19. Rd3 {[%emt 0:19:05]} Kb8 {[%emt 0:02:34]} 20. Rhd1 {[%emt 0:02:19]} hxg5 {[%emt 0:14:02]} 21. Ne3 {[%emt 0:03:24]} Nhf6 {[%emt 0:00:39]} 22. Qf5 {[%emt 0:01:07]} gxh4 {[%emt 0:03:09]} 23. Qg5 {[%emt 0:08:27]} g6 {[%emt 0:04:46]} 24. Ng4 {[%emt 0:04:11]} Nxg4 {[%emt 0:01:31]} 25. Qxg4 {[%emt 0:00:13]} Rc8 {[%emt 0:08:09]} 26. Rc3 {[%emt 0:00:15]} Qb5 {[%emt 0:00:32]} 27. Rxc8+ {[%emt 0:06:17]} Kxc8 {[%emt 0:00:12]} 28. Nc3 {[%emt 0:00:08]} Qc6 {[%emt 0:00:22]} 29. Nd5 {[%emt 0:01:45]} Qe6 {[%emt 0:06:32]} 30. Qc4+ {[%emt 0:02:40]} Kb8 {[%emt 0:00:08]} 31. Qc7+ {[%emt 0:03:12]} Ka8 {[%emt 0:00:02]} 32. Qc3 {[%emt 0:03:06]} Qf5 {[%emt 0:02:10]} 33. Nc7+ {[%emt 0:01:43]} Kb8 {[%emt 0:00:04]} 34. Nb5 {[%emt 0:00:19]} Qg5+ {[%emt 0:04:04]} 35. Kb1 {[%emt 0:00:06]} Rc8 {[%emt 0:00:25]} 36. Qa3 {[%emt 0:00:21]} a6 {[%emt 0:00:25]} 37. Qd6+ {[%emt 0:00:05]} Ka8 {[%emt 0:00:30]} 38. Qxd7 {[%emt 0:00:47]} Rh8 {[%emt 0:01:13]} 39. Nd6 {[%emt 0:00:43]} Rb8 {[%emt 0:00:30]} 40. Ne8 {[%emt 0:01:27]} Qg3 {[%emt 0:00:33]} 41. Nc7+ {[%emt 0:00:28]} Ka7 {[%emt 0:00:00]} 42. Nxa6 {[%emt 0:00:28]} Ra8 {[%emt 0:01:01]} 43. Nc5 {[%emt 0:00:11]} Qxf3 {[%emt 0:00:12]} 44. a3 {[%emt 0:00:50]} h3 {[%emt 0:00:32]} 45. Qa4+ {[%emt 0:00:23]} Kb6 {[%emt 0:00:36]} 46. Rd6+ {[%emt 0:00:18]} Kxc5 {[%emt 0:00:09]} 47. Qb4# {[%emt 0:00:09]} 1-0

[Event "16th Marseille Festival 2023"]
[Site "Marseille"]
[Date "2023.12.30"]
[Round "7.1"]
[White "Gusain, Himal"]
[Black "Philippe, Guillaume"]
[Result "1/2-1/2"]
[WhiteElo "2457"]
[BlackElo "2334"]
[PlyCount "51"]
[EventDate "2023.12.30"]
[EventType "swiss"]
[EventCountry "FRA"]
[TimeControl "5400+30"]

1. e4 {[%emt 0:10:34]} d6 {[%emt 0:00:24]} 2. d4 {[%emt 0:00:12]} Nf6 {[%emt 0:00:06]} 3. Nc3 {[%emt 0:00:06]} g6 {[%emt 0:00:06]} 4. Nf3 {[%emt 0:00:04]} Bg7 {[%emt 0:00:16]} 5. Be2 {[%emt 0:00:09]} O-O {[%emt 0:00:14]} 6. O-O {[%emt 0:00:08]} a6 {[%emt 0:02:12]} 7. a4 {[%emt 0:00:49]} Nc6 {[%emt 0:04:11]} 8. a5 {[%emt 0:01:13]} e6 {[%emt 0:03:38]} 9. Re1 {[%emt 0:07:33]} d5 {[%emt 0:03:07]} 10. e5 {[%emt 0:06:56]} Ne4 {[%emt 0:00:14]} 11. Bd3 {[%emt 0:00:11]} f5 {[%emt 0:04:06]} 12. exf6 {[%emt 0:00:58]} Nxf6 {[%emt 0:00:06]} 13. Bg5 {[%emt 0:06:53]} Qd6 {[%emt 0:00:49]} 14. Ne2 {[%emt 0:14:03]} Ng4 {[%emt 0:06:12]} 15. h3 {[%emt 0:00:16]} Rxf3 {[%emt 0:01:10]} 16. hxg4 {[%emt 0:00:41]} Rf7 {[%emt 0:00:07]} 17. Ra4 {[%emt 0:25:52]} Bd7 {[%emt 0:07:31]} 18. Bh4 {[%emt 0:00:41]} e5 {[%emt 0:00:07]} 19. Bg3 {[%emt 0:00:17]} Qf8 {[%emt 0:02:53]} 20. c4 {[%emt 0:11:43]} Nxd4 {[%emt 0:06:22]} 21. Nxd4 {[%emt 0:02:10]} Bxa4 {[%emt 0:00:38]} 22. Qxa4 {[%emt 0:00:06]} exd4 {[%emt 0:00:05]} 23. cxd5 {[%emt 0:00:04]} Kh8 {[%emt 0:09:50]} 24. Qb3 {[%emt 0:02:40]} c6 {[%emt 0:00:53]} 25. d6 {[%emt 0:01:05]} Re8 {[%emt 0:00:39]} 26. Re6 {[%emt 0:08:06]} 1/2-1/2

[Event "16th Marseille Festival 2023"]
[Site "Marseille"]
[Date "2023.12.30"]
[Round "7.2"]
[White "Lamard, Guillaume"]
[Black "Girel, Joseph"]
[Result "1-0"]
[WhiteElo "2497"]
[BlackElo "2495"]
[PlyCount "135"]
[EventDate "2023.12.30"]
[EventType "swiss"]
[EventCountry "FRA"]
[TimeControl "5400+30"]

1. Nf3 {[%emt 0:00:03]} d5 {[%emt 0:04:22]} 2. e3 {[%emt 0:00:15]} Nf6 {[%emt 0:00:38]} 3. c4 {[%emt 0:00:03]} e6 {[%emt 0:00:20]} 4. Nc3 {[%emt 0:00:03]} b6 {[%emt 0:00:53]} 5. cxd5 {[%emt 0:00:08]} exd5 {[%emt 0:00:10]} 6. g3 {[%emt 0:00:03]} Bb7 {[%emt 0:01:31]} 7. Bg2 {[%emt 0:00:04]} Bd6 {[%emt 0:03:39]} 8. O-O {[%emt 0:00:20]} O-O {[%emt 0:00:06]} 9. b3 {[%emt 0:00:21]} Nbd7 {[%emt 0:01:12]} 10. Bb2 {[%emt 0:00:18]} Nc5 {[%emt 0:03:51]} 11. d3 {[%emt 0:01:34]} Ne6 {[%emt 0:05:39]} 12. Rc1 {[%emt 0:02:27]} a6 {[%emt 0:03:18]} 13. Re1 {[%emt 0:07:04]} Qe7 {[%emt 0:07:45]} 14. Nh4 {[%emt 0:07:13]} g6 {[%emt 0:02:18]} 15. Rc2 {[%emt 0:06:54]} Rad8 {[%emt 0:02:35]} 16. Qa1 {[%emt 0:02:36]} Ba3 {[%emt 0:03:27]} 17. Bxa3 {[%emt 0:01:22]} Qxa3 {[%emt 0:00:02]} 18. Rec1 {[%emt 0:01:22]} Qe7 {[%emt 0:02:12]} 19. Ne2 {[%emt 1:07:50]} c5 {[%emt 0:06:42]} 20. d4 {[%emt 0:00:00]} Ne4 {[%emt 0:00:30]} 21. Nf3 {[%emt 0:00:00]} Qf6 {[%emt 0:03:59]} 22. Nf4 {[%emt 0:00:00]} Nxf4 {[%emt 0:01:46]} 23. exf4 {[%emt 0:00:00]} cxd4 {[%emt 0:06:23]} 24. Qxd4 {[%emt 0:00:00]} Qxd4 {[%emt 0:00:48]} 25. Nxd4 {[%emt 0:00:00]} a5 {[%emt 0:19:12]} 26. Rc7 {[%emt 0:00:00]} Rc8 {[%emt 0:01:31]} 27. Bh3 {[%emt 0:00:00]} f5 {[%emt 0:01:18]} 28. f3 {[%emt 0:00:00]} Nc5 {[%emt 0:01:36]} 29. Re7 {[%emt 0:00:00]} Rfe8 {[%emt 0:05:08]} 30. Rxe8+ {[%emt 0:00:00]} Rxe8 {[%emt 0:00:06]} 31. Bf1 {[%emt 0:00:00]} Kf7 {[%emt 0:00:23]} 32. Kf2 {[%emt 0:00:00]} Re7 {[%emt 0:03:40]} 33. Rc2 {[%emt 0:00:00]} Re8 {[%emt 0:02:42]} 34. Bb5 {[%emt 0:00:00]} Rc8 {[%emt 0:00:51]} 35. Re2 {[%emt 0:00:00]} Ba6 {[%emt 0:05:45]} 36. Bxa6 {[%emt 0:00:00]} Nxa6 {[%emt 0:00:02]} 37. Nb5 {[%emt 0:02:52]} Rd8 {[%emt 0:00:32]} 38. Rc2 {[%emt 0:00:38]} Nc5 {[%emt 0:00:16]} 39. Ke3 {[%emt 0:00:13]} Kf6 {[%emt 0:00:48]} 40. Nd4 {[%emt 0:01:04]} Rc8 {[%emt 0:01:06]} 41. h3 {[%emt 0:01:50]} Rc7 {[%emt 0:00:51]} 42. Nb5 {[%emt 0:00:49]} Rd7 {[%emt 0:00:30]} 43. Nd4 {[%emt 0:00:27]} Rc7 {[%emt 0:00:04]} 44. Nb5 {[%emt 0:00:03]} Rd7 {[%emt 0:00:03]} 45. g4 {[%emt 0:00:51]} h6 {[%emt 0:00:44]} 46. Nd4 {[%emt 0:00:12]} Re7+ {[%emt 0:01:00]} 47. Kd2 {[%emt 0:00:10]} Rc7 {[%emt 0:00:15]} 48. Rc1 {[%emt 0:01:08]} Re7 {[%emt 0:01:13]} 49. a3 {[%emt 0:00:27]} Rc7 {[%emt 0:00:32]} 50. Re1 {[%emt 0:00:53]} fxg4 {[%emt 0:00:29]} 51. hxg4 {[%emt 0:00:08]} Re7 {[%emt 0:00:38]} 52. Rh1 {[%emt 0:00:52]} Kg7 {[%emt 0:00:32]} 53. f5 {[%emt 0:00:17]} Rf7 {[%emt 0:00:35]} 54. b4 {[%emt 0:00:44]} axb4 {[%emt 0:00:01]} 55. axb4 {[%emt 0:00:05]} Na6 {[%emt 0:00:15]} 56. Ne6+ {[%emt 0:00:20]} Kg8 {[%emt 0:00:04]} 57. Ra1 {[%emt 0:01:53]} Nc7 {[%emt 0:01:28]} 58. fxg6 {[%emt 0:00:20]} Re7 {[%emt 0:00:01]} 59. Nd4 {[%emt 0:00:11]} Ne8 {[%emt 0:01:07]} 60. Nf5 {[%emt 0:00:59]} Re6 {[%emt 0:00:07]} 61. Ra8 {[%emt 0:00:29]} Kf8 {[%emt 0:00:23]} 62. g7+ {[%emt 0:00:29]} Kg8 {[%emt 0:00:08]} 63. Rd8 {[%emt 0:00:49]} Kh7 {[%emt 0:00:46]} 64. Rxd5 {[%emt 0:00:07]} Nf6 {[%emt 0:00:31]} 65. Rd8 {[%emt 0:00:22]} Ng8 {[%emt 0:00:05]} 66. Kd3 {[%emt 0:00:42]} Re1 {[%emt 0:00:19]} 67. Kc4 {[%emt 0:00:20]} Rf1 {[%emt 0:00:25]} 68. Rd3 {[%emt 0:00:20]} 1-0